bitfinex-derivatives/quotes_SOLF0:USTF0_20250929
["timestamp","ask_amount","ask_price","bid_price","bid_amount"]
[1759110589697,4.2978,209.32,209.23,136.39177883]
[1759110589900,4.2978,209.32,209.24,117.1]
[1759110590196,7.23,209.33,209.24,117.1]
[1759110590401,1.40102517,209.34,209.25,1.40102517]
[1759110590798,1.40102517,209.34,209.25,5.70002517]
[1759110591000,1.40102517,209.34,209.25,1.40102517]
[1759110591293,1.40102517,209.34,209.25,16.02166817]
[1759110591500,5.69832517,209.34,209.25,16.02166817]
[1759110592103,5.69832517,209.34,209.27,4.2986]
[1759110592793,4.2973,209.34,209.27,4.2986]
[1759110594095,4.2968,209.36,209.27,5.69962517]
[1759110594796,7.58,209.34,209.26,1.40102517]
[1759110595101,1.40102517,209.31,209.24,117.1]
[1759110596003,7.58,209.41,209.28,1.40102517]
[1759110596203,8.98102517,209.38,209.28,1.40102517]
[1759110596896,1.40102517,209.36,209.28,1.40102517]
[1759110597098,7.58,209.35,209.28,1.40102517]
[1759110597300,1.40102517,209.34,209.25,5.69992517]
[1759110597501,11.877,209.35,209.27,5.69972517]
[1759110597899,7.58,209.35,209.27,1.40102517]
[1759110598101,1.40102517,209.39,209.29,1.40102517]
[1759110598401,7.58,209.38,209.29,1.40102517]
[1759110599103,11.8766,209.38,209.31,1.40102517]
[1759110600905,7.58,209.41,209.33,1.40102517]
[1759110601204,7.58,209.41,209.3,92.76]
[1759110601502,7.58,209.41,209.34,1.40102517]
[1759110603206,11.8759,209.41,209.34,1.40102517]
[1759110603704,4.2961,209.4,209.34,1.40102517]
[1759110603898,1.40102517,209.39,209.3,1.40102517]
[1759110604098,7.58,209.38,209.3,1.40102517]
[1759110604298,7.58,209.36,209.29,31.0]
[1759110604897,7.58,209.36,209.3,1.40102517]
[1759110605706,7.58,209.36,209.3,5.69902517]
[1759110606197,4.2964,209.38,209.3,5.69902517]
[1759110606598,4.2964,209.38,209.29,31.0]
[1759110606599,4.2964,209.38,209.32,1.40102517]
[1759110607203,7.58,209.39,209.32,1.40102517]
[1759110607999,11.8756,209.42,209.34,1.40102517]
[1759110609806,11.8756,209.42,209.34,5.69802517]
[1759110610707,11.8756,209.42,209.3,66.8579]
[1759110610708,7.58,209.42,209.36,1.40102517]
[1759110611210,4.2948,209.46,209.38,5.69722517]
[1759110611410,7.58,209.45,209.38,5.69722517]
[1759110612011,11.8751,209.45,209.38,5.69722517]
[1759110612213,7.58,209.45,209.38,1.40102517]
[1759110612818,4.2953,209.44,209.38,1.40102517]
[1759110615011,7.58,209.45,209.38,1.40102517]
[1759110615214,7.44,209.49,209.4,1.40102517]
[1759110615709,4.2943,209.48,209.42,1.40102517]
[1759110616307,4.2943,209.48,209.4,80.16102517]
[1759110616515,7.44,209.47,209.4,80.16102517]
[1759110616809,4.2943,209.48,209.42,1.40102517]
[1759110617009,13.13502517,209.5,209.42,1.40102517]
[1759110617515,8.84102517,209.5,209.42,1.40102517]
[1759110618617,4.2945,209.48,209.42,1.40102517]
[1759110619215,4.2947,209.47,209.42,1.40102517]
[1759110619607,7.44,209.46,209.42,1.40102517]
[1759110623016,7.44,209.46,209.42,5.69642517]
[1759110623419,7.44,209.5,209.41,1.40102517]
[1759110623616,1.40102517,209.49,209.41,1.40102517]
[1759110623915,4.2946,209.47,209.41,1.40102517]
[1759110624624,4.2946,209.47,209.41,118.40102517]
[1759110625116,4.2946,209.47,209.41,1.40102517]
[1759110625625,4.2946,209.47,209.41,73.20102517]
[1759110626120,7.57,209.48,209.43,1.40102517]
[1759110626321,11.8641,209.49,209.43,1.40102517]
[1759110627018,7.57,209.49,209.43,1.40102517]
[1759110627318,68.19022517,209.52,209.37,97.16]
[1759110627319,7.57,209.45,209.37,97.16]
[1759110627514,1.40102517,209.46,209.37,97.16]
[1759110628220,4.2952,209.44,209.37,97.16]
[1759110628520,4.2952,209.44,209.37,117.02]
[1759110628720,7.57,209.43,209.37,117.02]
[1759110628919,7.57,209.43,209.37,118.42102517]
[1759110630125,7.57,209.43,209.38,4.2963]
[1759110630326,11.8652,209.44,209.38,117.0]
[1759110630534,11.8652,209.44,209.37,1.40102517]
[1759110630717,11.8652,209.44,209.38,116.96]
[1759110632621,4.2952,209.44,209.38,116.96]
[1759110632816,7.57,209.43,209.38,116.96]
[1759110633022,4.2952,209.44,209.38,116.96]
[1759110633219,11.8652,209.44,209.37,1.40102517]
[1759110633827,11.8652,209.44,209.38,116.92]
[1759110634226,11.8652,209.44,209.38,116.9]
[1759110634725,11.8652,209.44,209.37,4.2963]
[1759110634917,11.8652,209.44,209.38,118.30102517]
[1759110636322,11.8652,209.44,209.39,116.9]
[1759110636523,7.57,209.43,209.39,116.9]
[1759110636824,4.2952,209.44,209.39,116.9]
[1759110637023,7.57,209.43,209.39,116.9]
[1759110638321,4.2952,209.44,209.39,116.9]
[1759110638527,4.2947,209.46,209.39,116.9]
[1759110638727,4.2947,209.46,209.4,116.84]
[1759110639024,7.57,209.47,209.4,116.84]
[1759110639227,4.295,209.45,209.38,4.2962]
[1759110639524,7.57,209.43,209.33,347.44]
[1759110639728,7.57,209.38,209.34,116.82]
[1759110640129,7.57,209.38,209.33,347.44]
[1759110640321,66.8166,209.43,209.34,116.96]
[1759110640522,7.57,209.42,209.34,116.96]
[1759110640919,7.57,209.37,209.34,116.96]
[1759110643225,7.57,209.39,209.28,4.2983]
[1759110643620,66.8277,209.4,209.26,79.72]
[1759110643621,7.57,209.35,209.26,79.72]
[1759110644025,4.2975,209.33,209.26,79.72]
[1759110644432,7.57,209.34,209.26,79.72]
[1759110644832,7.57,209.33,209.26,79.72]
[1759110645329,4.2981,209.31,209.26,79.72]
[1759110646131,11.8675,209.33,209.26,79.72]
[1759110647731,4.2979,209.31,209.26,79.72]
[1759110649134,11.8675,209.33,209.26,79.72]
[1759110654035,4.2978,209.32,209.26,79.72]
[1759110656431,7.84,209.31,209.24,14.27025128]
[1759110656632,7.84,209.31,209.22,116.96]
[1759110657034,4.2987,209.28,209.22,116.96]
[1759110657336,7.84,209.31,209.22,116.96]
[1759110659239,4.2981,209.3,209.22,116.96]
[1759110659630,4.2981,209.3,209.22,121.2595]
[1759110659830,4.2981,209.3,209.22,135.94673257]
[1759110662043,7.84,209.28,209.22,131.64723257]
[1759110662639,12.1394,209.24,209.22,131.64723257]
[1759110663640,4.2989,209.26,209.22,131.64723257]
[1759110663843,12.1389,209.26,209.22,131.64723257]
[1759110664044,69.04796656,209.3,209.22,131.64723257]
[1759110664045,7.84,209.28,209.22,131.64723257]
[1759110664434,4.2993,209.25,209.22,131.64723257]
[1759110664638,12.1393,209.25,209.22,131.64723257]
[1759110665041,7.84,209.24,209.22,116.96]
[1759110665545,7.84,209.23,209.15,5.37076008]
[1759110665736,7.84,209.23,209.16,116.94]
[1759110666042,7.84,209.23,209.15,15.15393643]
[1759110666246,7.84,209.23,209.16,116.94]
[1759110666742,7.84,209.32,209.17,2.18786656]
[1759110666948,7.84,209.28,209.16,116.94]
[1759110667645,4.2993,209.25,209.16,116.94]
[1759110668544,4.2993,209.25,209.17,4.3005]
[1759110669854,4.2995,209.24,209.16,116.94]
[1759110670044,7.84,209.25,209.16,116.94]
[1759110670944,74.7163,209.25,209.16,116.94]
[1759110671140,74.7163,209.25,209.15,15.45575086]
[1759110671340,74.7163,209.25,209.16,117.06]
[1759110671748,4.3001,209.21,209.15,15.45575086]
[1759110671953,7.88,209.21,209.15,15.45575086]
[1759110672450,4.3008,209.17,209.15,1.06966008]
[1759110674153,7.88,209.18,209.15,1.06966008]
[1759110674349,69.06686656,209.24,209.15,1.06966008]
[1759110674350,74.7684,209.21,209.15,1.06966008]
[1759110675257,12.1807,209.17,209.15,1.06966008]
[1759110675552,12.1807,209.17,209.14,117.12]
[1759110676255,7.88,209.18,209.14,117.12]
[1759110677043,4.2999,209.22,209.14,117.12]
[1759110677648,7.88,209.23,209.14,117.12]
[1759110678556,7.88,209.18,209.14,117.12]
[1759110678956,7.88,209.18,209.13,131.26019767]
[1759110679156,4.3,209.21,209.13,131.26019767]
[1759110679451,7.88,209.23,209.13,131.26019767]
[1759110679852,10.06786656,209.28,209.13,133.44806423]
[1759110680458,4.2995,209.24,209.16,4.3009]
[1759110681055,4.2989,209.26,209.14,66.9108]
[1759110681251,4.2989,209.26,209.16,2.18786656]
[1759110681451,7.88,209.29,209.16,69.09136656]
[1759110681753,7.88,209.29,209.17,2.18786656]
[1759110682258,4.2986,209.28,209.2,4.3]
[1759110683154,7.88,209.29,209.22,4.2997]
[1759110683656,12.1785,209.29,209.22,4.2997]
[1759110683856,12.1785,209.29,209.2,4.3001]
[1759110684260,4.2987,209.28,209.2,4.3001]
[1759110684456,4.2987,209.28,209.2,121.5401]
[1759110685049,4.2987,209.28,209.21,4.2997]
[1759110685958,7.88,209.29,209.23,4.2995]
[1759110686155,4.2981,209.3,209.23,4.2995]
[1759110686763,7.33,209.33,209.26,4.2988]
[1759110687057,7.33,209.38,209.27,87.18]
[1759110687660,4.297,209.36,209.27,87.18]
[1759110688653,4.297,209.36,209.27,91.4785]
[1759110689061,11.6264,209.38,209.27,87.18]
[1759110689251,11.6264,209.38,209.29,4.2982]
[1759110689456,7.33,209.38,209.27,87.18]
[1759110690460,66.8318,209.39,209.27,87.18]
[1759110690461,7.33,209.35,209.27,87.18]
[1759110690860,7.33,209.35,209.22,2.18786656]
[1759110691065,7.33,209.35,209.23,106.14]
[1759110691568,4.2975,209.33,209.24,4.2993]
[1759110692962,4.2975,209.33,209.25,117.28]
[1759110694271,4.2975,209.33,209.26,4.2989]
[1759110695868,4.2975,209.33,209.26,90.2389]
[1759110696871,4.297,209.36,209.27,5.70033456]
[1759110698266,4.2972,209.35,209.27,5.70033456]
[1759110700065,4.2972,209.35,209.29,1.40183456]
[1759110702269,13.02843456,209.38,209.29,1.40183456]
[1759110702566,8.73183456,209.38,209.29,1.40183456]
[1759110703572,4.2968,209.37,209.29,1.40183456]
[1759110705774,4.2968,209.37,209.29,5.69993456]
[1759110708180,4.2968,209.37,209.29,122.71993456]
[1759110709179,7.33,209.42,209.33,1.40183456]
[1759110709573,7.33,209.42,209.35,1.40183456]
[1759110710870,7.33,209.42,209.37,1.40183456]
[1759110711076,7.33,209.46,209.37,1.40183456]
[1759110711476,4.295,209.45,209.39,5.69803456]
[1759110711773,8.73183456,209.51,209.41,1.40183456]
[1759110712675,7.33,209.48,209.41,1.40183456]
[1759110712879,4.2942,209.49,209.41,1.40183456]
[1759110713578,1.40183456,209.5,209.41,1.40183456]
[1759110713579,11.6246,209.47,209.41,1.40183456]
[1759110713775,1.40183456,209.46,209.37,14.33168735]
[1759110713974,1.40183456,209.44,209.37,38.6]
[1759110714383,7.57,209.45,209.37,38.6]
[1759110714582,4.2954,209.43,209.37,38.6]
[1759110715180,4.2954,209.43,209.37,52.57785269]
[1759110715781,11.8654,209.43,209.37,52.57785269]
[1759110716684,7.57,209.42,209.31,4.2977]
[1759110716885,7.57,209.39,209.3,1.40183456]
[1759110717674,7.57,209.39,209.3,15.44309417]
[1759110717880,11.8664,209.39,209.34,1.40183456]
[1759110718477,4.2958,209.42,209.34,1.40183456]
[1759110718775,4.2958,209.42,209.36,1.40183456]
[1759110719285,4.2958,209.42,209.34,1.40183456]
[1759110721584,4.296,209.41,209.34,1.40183456]
[1759110726087,11.866,209.41,209.34,1.40183456]
[1759110727688,7.57,209.39,209.31,117.16]
[1759110728094,4.2966,209.37,209.31,117.16]
[1759110728289,7.57,209.36,209.31,117.16]
[1759110728494,4.2966,209.37,209.31,117.16]
[1759110729190,11.8666,209.37,209.31,117.16]
[1759110730994,7.57,209.37,209.32,1.40183456]
[1759110733792,12.2558,209.41,209.34,1.40183456]
[1759110734194,12.2558,209.41,209.36,1.40183456]
[1759110734794,7.96,209.4,209.36,1.40183456]
[1759110734991,7.96,209.4,209.31,117.16]
[1759110735193,7.96,209.4,209.36,1.40183456]
[1759110735396,7.96,209.39,209.36,1.40183456]
[1759110735600,7.96,209.39,209.36,118.54183456]
[1759110736006,4.2962,209.4,209.36,118.54183456]
[1759110736398,7.96,209.39,209.36,118.54183456]
[1759110736807,7.96,209.39,209.36,117.14]
[1759110738506,7.96,209.39,209.36,117.1]
[1759110738914,7.96,209.37,209.36,117.1]
[1759110739112,7.96,209.37,209.36,117.04]
[1759110742299,7.96,209.37,209.35,117.0]
[1759110742498,7.96,209.37,209.33,1.40183456]
[1759110742706,7.96,209.37,209.34,116.98]
[1759110745206,4.2965,209.38,209.34,116.98]
[1759110745705,12.0565,209.38,209.34,116.98]
[1759110746307,66.7904,209.52,209.37,1.40183456]
[1759110746507,7.76,209.44,209.37,1.40183456]
[1759110746704,7.76,209.44,209.37,116.96]
[1759110747006,1.40183456,209.45,209.37,116.96]
[1759110747206,7.76,209.44,209.37,116.96]
[1759110747711,12.056,209.41,209.37,116.96]
[1759110748708,4.2962,209.4,209.37,116.96]
[1759110748910,4.2962,209.4,209.31,8.0537325]
[1759110748911,7.76,209.4,209.32,118.36183456]
[1759110749606,1.40183456,209.39,209.3,15.83777149]
[1759110749913,7.76,209.38,209.3,77.9]
[1759110750115,7.76,209.38,209.28,1.40183456]
[1759110750316,7.76,209.38,209.3,117.02]
[1759110750510,4.2969,209.36,209.3,117.02]
[1759110750704,7.76,209.38,209.32,1.40183456]
[1759110751215,7.76,209.38,209.33,117.04]
[1759110752711,12.0565,209.38,209.33,117.04]
[1759110754120,12.0568,209.37,209.33,117.04]
[1759110754414,12.0568,209.37,209.33,117.0]
[1759110755112,12.0568,209.37,209.3,15.86716123]
[1759110755113,7.76,209.34,209.31,117.0]
[1759110756216,7.76,209.34,209.24,8.0537325]
[1759110756217,7.76,209.32,209.24,8.0537325]
[1759110756417,7.76,209.32,209.25,1.40183456]
[1759110756724,7.76,209.32,209.27,1.40183456]
[1759110757019,7.76,209.32,209.27,95.00183456]
[1759110757215,4.2973,209.34,209.27,95.00183456]
[1759110757515,4.2973,209.34,209.28,114.7]
[1759110759012,7.76,209.36,209.28,114.7]
[1759110759913,224.7952,209.44,209.28,116.88973562]
[1759110759914,7.76,209.39,209.28,116.88973562]
[1759110760611,147.64,209.49,209.34,2.18973562]
[1759110760612,7.76,209.46,209.34,2.18973562]
[1759110760812,7.76,209.46,209.35,117.16]
[1759110761415,4.2952,209.44,209.35,121.4569]
[1759110761617,4.2952,209.44,209.35,117.16]
[1759110761823,7.76,209.46,209.35,117.16]
[1759110762315,4.2952,209.44,209.35,117.16]
[1759110764223,4.2952,209.44,209.36,4.2968]
[1759110764421,4.2952,209.44,209.37,117.18]
[1759110764722,4.2952,209.44,209.36,4.2968]
[1759110764915,4.2952,209.44,209.37,117.16]
[1759110765116,7.76,209.46,209.38,4.2964]
[1759110765719,7.76,209.46,209.39,117.16]
[1759110766616,12.055,209.46,209.39,117.16]
[1759110767716,12.055,209.46,209.4,117.14]
[1759110767917,66.7997,209.49,209.4,117.14]
[1759110767918,12.0552,209.44,209.4,117.12]
[1759110769416,4.2948,209.46,209.4,117.12]
[1759110769621,440.46,209.55,209.4,117.12]
[1759110769622,0.88812049,209.53,209.4,117.12]
[1759110769814,7.76,209.52,209.41,2.18973562]
[1759110770014,7.76,209.52,209.44,4.2952]
[1759110770423,7.76,209.52,209.45,117.12]
[1759110771423,12.0536,209.52,209.45,117.12]
[1759110771823,12.0536,209.52,209.42,9.63790029]
[1759110772025,12.0536,209.52,209.43,117.1]
[1759110772416,12.0536,209.52,209.42,4.2956]
[1759110772620,12.0536,209.52,209.43,117.08]
[1759110773025,12.0536,209.52,209.42,4.2956]
[1759110773227,12.0536,209.52,209.43,117.08]
[1759110773420,12.0536,209.52,209.44,117.08]
[1759110773617,12.0536,209.52,209.44,121.3752]
[1759110773821,7.76,209.52,209.44,121.3752]
[1759110774026,7.76,209.52,209.45,117.06]
[1759110774328,7.76,209.52,209.46,117.06]
[1759110774528,7.76,209.52,209.44,4.2952]
[1759110774825,7.76,209.52,209.45,117.04]
[1759110775023,7.3,209.53,209.45,117.04]
[1759110775330,7.3,209.51,209.43,117.04]
[1759110775825,66.7907,209.52,209.43,117.04]
[1759110776026,7.3,209.47,209.41,117.06]
[1759110776522,7.3,209.47,209.39,117.06]
[1759110776722,4.2952,209.44,209.39,117.06]
[1759110776920,7.3,209.43,209.39,117.06]
[1759110778628,4.2952,209.44,209.39,117.06]
[1759110778827,11.5952,209.44,209.39,117.06]
[1759110779229,7.3,209.43,209.39,117.06]
[1759110779427,7.3,209.43,209.38,117.02]
[1759110779625,7.3,209.43,209.36,1.27919473]
[1759110779826,11.5956,209.43,209.36,1.27919473]
[1759110780128,7.3,209.43,209.37,66.0]
[1759110780927,7.3,209.43,209.36,1.27919473]
[1759110781130,7.3,209.43,209.35,117.02]
[1759110781131,4.2958,209.42,209.35,121.317]
[1759110781331,7.3,209.43,209.35,121.317]
[1759110781531,7.3,209.43,209.36,117.02]
[1759110782432,11.5956,209.43,209.36,117.02]
[1759110782633,7.3,209.43,209.32,5.34230029]
[1759110782833,7.3,209.43,209.33,117.0]
[1759110783029,7.3,209.43,209.33,121.2974]
[1759110783333,7.3,209.43,209.33,117.0]
[1759110784635,7.3,209.43,209.35,4.2969]
[1759110786426,66.8121,209.45,209.33,117.0]
[1759110786629,7.3,209.42,209.33,116.92]
[1759110787736,4.296,209.4,209.33,116.92]
[1759110788034,7.3,209.39,209.33,116.92]
[1759110790928,4.296,209.4,209.33,116.92]
[1759110791136,11.5956,209.42,209.33,116.92]
[1759110791833,11.5956,209.42,209.34,4.2972]
[1759110792537,7.3,209.42,209.34,4.2972]
[1759110793037,2.18973562,209.45,209.33,116.92]
[1759110793235,4.2948,209.46,209.33,185.95883562]
[1759110794128,4.2948,209.46,209.36,4.2968]
[1759110794338,4.2951,209.45,209.36,4.2968]
[1759110794532,7.96,209.47,209.33,119.10973562]
[1759110794728,4.2953,209.44,209.34,4.2972]
[1759110794929,7.96,209.47,209.34,4.2972]
[1759110795132,2.18973562,209.45,209.35,116.96]
[1759110795331,12.256,209.4,209.35,116.96]
[1759110795530,7.96,209.39,209.35,116.96]
[1759110796035,12.2564,209.39,209.31,104.90129287]
[1759110796238,12.2564,209.39,209.32,116.96]
[1759110796829,4.2966,209.38,209.31,104.90129287]
[1759110797030,4.2966,209.38,209.32,116.96]
[1759110797731,7.96,209.39,209.32,116.96]
[1759110798340,12.2564,209.39,209.32,116.96]
[1759110799535,4.2966,209.38,209.32,116.96]
[1759110800834,7.96,209.4,209.31,104.90129287]
[1759110801037,66.8249,209.41,209.32,116.9]
[1759110801237,7.96,209.4,209.32,116.9]
[1759110801536,4.297,209.36,209.32,116.9]
[1759110801837,7.96,209.35,209.32,116.9]
[1759110802226,4.297,209.36,209.32,116.9]
[1759110802431,12.257,209.36,209.32,116.9]
[1759110803934,74.3748,209.35,209.23,106.74151632]
[1759110804141,7.53,209.34,209.24,117.06]
[1759110804337,7.53,209.34,209.24,121.3591]
[1759110804536,9.71973562,209.37,209.24,117.06]
[1759110805534,4.2972,209.34,209.25,4.2989]
[1759110806534,4.2976,209.32,209.25,18.32488795]
[1759110807140,11.8276,209.32,209.25,14.02598795]
[1759110807340,11.8276,209.32,209.24,117.06]
[1759110808441,11.8276,209.32,209.21,2.18973562]
[1759110808442,11.8276,209.32,209.25,117.06]
[1759110810142,11.8276,209.32,209.25,131.56312085]
[1759110812647,11.8276,209.32,209.26,116.98]
[1759110813742,7.53,209.3,209.22,116.98]
[1759110814246,4.2987,209.28,209.22,116.98]
[1759110814441,7.53,209.28,209.22,116.98]
[1759110814944,7.53,209.31,209.22,116.98]
[1759110815250,142.2435,209.41,209.22,186.05443562]
[1759110815251,7.53,209.36,209.22,186.05443562]
[1759110815546,7.53,209.36,209.25,2.18973562]
[1759110815746,4.2974,209.34,209.27,4.2985]
[1759110815948,4.2974,209.34,209.28,117.1]
[1759110817952,4.2976,209.33,209.28,117.1]
[1759110818153,11.8276,209.33,209.28,117.1]
[1759110818351,7.53,209.32,209.28,117.1]
[1759110818552,7.53,209.31,209.28,117.1]
[1759110818743,7.53,209.31,209.23,6.48923562]
[1759110818948,7.53,209.31,209.24,62.68]
[1759110819550,4.2981,209.3,209.24,62.68]
[1759110821052,1.40232036,209.3,209.24,62.68]
[1759110822056,1.40232036,209.3,209.21,14.33678734]
[1759110822246,1.40232036,209.3,209.2,1.40232036]
[1759110822449,1.40232036,209.3,209.2,15.56494578]
[1759110822756,1.40232036,209.3,209.2,1.40232036]
[1759110823656,4.299,209.26,209.2,1.40232036]
[1759110824255,66.8537,209.32,209.24,1.40232036]
[1759110824256,4.2977,209.32,209.24,1.40232036]
[1759110825261,4.2977,209.32,209.26,1.40232036]
[1759110825858,4.2973,209.34,209.26,1.40232036]
[1759110826055,1.40232036,209.36,209.26,1.40232036]
[1759110826250,7.53,209.35,209.26,1.40232036]
[1759110826462,4.2976,209.33,209.26,1.40232036]
[1759110827360,4.2978,209.32,209.26,1.40232036]
[1759110828062,4.2978,209.32,209.19,81.94239629]
[1759110828063,7.53,209.31,209.2,4.3001]
[1759110828258,7.53,209.31,209.23,1.40232036]
[1759110828859,7.53,209.31,209.25,1.40232036]
[1759110829765,4.2982,209.3,209.25,1.40232036]
[1759110830666,4.2982,209.3,209.22,4.2996]
[1759110830865,4.2982,209.3,209.24,1.40232036]
[1759110831563,7.53,209.3,209.24,1.40232036]
[1759110831864,7.53,209.3,209.22,1.40232036]
[1759110832566,4.2991,209.26,209.22,1.40232036]
[1759110833268,4.2985,209.28,209.22,1.40232036]
[1759110833468,7.53,209.3,209.22,1.40232036]
[1759110833766,4.2985,209.29,209.22,1.40232036]
[1759110834870,4.2985,209.29,209.23,1.40232036]
[1759110835365,4.2987,209.28,209.23,1.40232036]
[1759110835762,7.56,209.27,209.23,1.40232036]
[1759110837471,7.56,209.27,209.21,79.3198]
[1759110837472,4.2981,209.31,209.25,1.40232036]
[1759110838061,4.2981,209.31,209.25,5.70132036]
[1759110840269,11.8583,209.3,209.21,126.79752479]
[1759110840567,11.8583,209.3,209.22,1.40232036]
[1759110841868,11.8583,209.3,209.24,1.40232036]
[1759110842375,4.2976,209.33,209.26,1.40232036]
[1759110842568,7.56,209.34,209.26,1.40232036]
[1759110842970,11.8573,209.34,209.26,1.40232036]
[1759110843166,7.56,209.34,209.24,5.33782479]
[1759110843470,7.56,209.32,209.24,117.2]
[1759110843672,4.2983,209.3,209.24,117.2]
[1759110844166,7.56,209.29,209.24,117.2]
[1759110844571,4.2983,209.3,209.24,117.2]
[1759110844776,7.56,209.29,209.24,117.2]
[1759110845072,11.8583,209.3,209.24,117.2]
[1759110847275,7.56,209.27,209.24,117.2]
[1759110848376,4.298,209.31,209.24,117.2]
[1759110848377,11.858,209.31,209.24,117.2]
[1759110848967,11.8583,209.29,209.24,117.2]
[1759110849178,7.56,209.29,209.24,118.60232036]
[1759110849367,1.40232036,209.33,209.24,118.60232036]
[1759110849368,7.56,209.33,209.24,123.94014515]
[1759110849573,7.56,209.33,209.26,1.40232036]
[1759110849876,7.56,209.33,209.26,6.74014515]
[1759110850173,7.56,209.33,209.26,1.40232036]
[1759110850572,4.2978,209.32,209.26,118.54232036]
[1759110852772,4.2978,209.32,209.26,117.14]
[1759110853278,7.83,209.29,209.25,117.08]
[1759110853478,12.1282,209.3,209.23,6.74014515]
[1759110853668,7.83,209.3,209.23,6.74014515]
[1759110853873,4.2979,209.32,209.25,1.40232036]
[1759110854074,4.2979,209.32,209.25,6.74014515]
[1759110862290,4.2979,209.32,209.25,5.33782479]
[1759110863787,7.83,209.34,209.28,1.40232036]
[1759110863982,4.2972,209.35,209.28,6.74014515]
[1759110865092,4.2974,209.34,209.27,6.74014515]
[1759110865290,4.2974,209.34,209.27,1.40232036]
[1759110865589,4.2974,209.34,209.27,108.64232036]
[1759110866389,4.2977,209.33,209.27,108.64232036]
[1759110866594,12.2277,209.33,209.27,108.64232036]
[1759110867488,7.93,209.36,209.29,1.40232036]
[1759110867791,7.93,209.36,209.31,1.40232036]
[1759110869196,7.93,209.36,209.29,5.33782479]
[1759110869389,7.93,209.36,209.32,1.40232036]
[1759110870195,4.2969,209.37,209.32,1.40232036]
[1759110870493,7.93,209.4,209.32,1.40232036]
[1759110871400,68.24102036,209.37,209.28,5.33782479]
[1759110871697,7.93,209.36,209.27,1.40232036]
[1759110871892,1.40232036,209.36,209.26,68.41782479]
[1759110872099,4.2979,209.32,209.26,69.82014515]
[1759110872298,7.93,209.31,209.26,69.82014515]
[1759110872494,7.93,209.31,209.26,64.48232036]
[1759110872692,4.2979,209.32,209.26,64.48232036]
[1759110872895,7.93,209.31,209.26,63.08]
[1759110873097,12.2279,209.32,209.26,63.08]
[1759110874798,7.93,209.32,209.26,64.48232036]
[1759110875798,7.93,209.32,209.26,63.08]
[1759110876200,7.93,209.3,209.26,63.08]
[1759110876399,12.228,209.31,209.26,63.08]
[1759110877002,7.93,209.31,209.26,63.08]
[1759110877398,4.2975,209.33,209.26,64.48232036]
[1759110878004,4.2975,209.33,209.26,74.11894515]
[1759110878206,4.2971,209.35,209.28,1.40232036]
[1759110880203,4.2971,209.35,209.27,9.63642479]
[1759110881507,12.2271,209.35,209.27,9.63642479]
[1759110883505,12.2271,209.35,209.28,4.2984]
[1759110883910,12.2271,209.35,209.28,9.63622479]
[1759110885106,7.93,209.35,209.29,4.2982]
[1759110886617,12.2272,209.35,209.27,9.63652479]
[1759110887214,7.93,209.35,209.27,5.33782479]
[1759110887415,69.02538989,209.38,209.26,68.41782479]
[1759110887615,7.93,209.35,209.26,5.33782479]
[1759110887912,7.93,209.35,209.24,5.33782479]